bitfinex/quotes_BTCUSD_20240718
["timestamp","ask_amount","ask_price","bid_price","bid_amount"]
[1721333058679,0.15838174,63649.0,63648.0,0.70093767]
[1721333059104,0.004,63649.0,63648.0,1.01516567]
[1721333059317,0.004,63649.0,63648.0,1.32939367]
[1721333059748,0.004,63649.0,63648.0,1.32903848]
[1721333060205,0.002,63649.0,63648.0,1.32903848]
[1721333060645,0.002,63649.0,63648.0,1.33203848]
[1721333060872,0.00083,63654.0,63653.0,0.157101]
[1721333061105,0.15521174,63654.0,63653.0,0.38634148]
[1721333062400,0.15721174,63654.0,63653.0,0.38634148]
[1721333062827,0.15921174,63654.0,63653.0,0.38634148]
[1721333063052,0.15921174,63654.0,63653.0,0.70054448]
[1721333063279,0.15921174,63654.0,63653.0,0.70050141]
[1721333063949,0.15921174,63654.0,63653.0,0.38629841]
[1721333064444,0.15921174,63654.0,63653.0,0.70050141]
[1721333064876,0.15921174,63654.0,63653.0,1.01470441]
[1721333065583,0.00483,63654.0,63653.0,1.32890741]
[1721333065851,0.00483,63654.0,63653.0,1.40980741]
[1721333066105,0.00483,63654.0,63653.0,1.40994628]
[1721333066445,0.00283,63654.0,63653.0,1.40994628]
[1721333066756,0.00583,63654.0,63653.0,1.40994628]
[1721333067223,0.00083,63654.0,63653.0,1.40994628]
[1721333067436,0.00383,63654.0,63653.0,1.40994628]
[1721333067859,0.00383,63654.0,63653.0,1.32904628]
[1721333068298,0.00383,63654.0,63653.0,0.70064028]
[1721333068517,0.00383,63654.0,63653.0,0.12933628]
[1721333068518,0.30231174,63654.0,63653.0,0.12933628]
[1721333068949,0.30231174,63654.0,63649.0,0.157111]
[1721333069167,0.07717479,63650.0,63649.0,0.157111]
[1721333069391,0.23155653,63650.0,63649.0,0.28610838]
[1721333069848,0.23155653,63650.0,63649.0,0.22899738]
[1721333070108,0.37565653,63650.0,63638.0,0.04700069]
[1721333070320,0.07717479,63642.0,63638.0,0.157138]
[1721333070540,0.37565653,63642.0,63641.0,0.12997464]
[1721333070785,0.41284001,63642.0,63641.0,0.12997464]
[1721333071004,0.0827,63636.0,63620.0,0.04700069]
[1721333071221,0.05,63640.0,63621.0,0.12914726]
[1721333071222,0.0614,63626.0,63621.0,0.12914726]
[1721333071454,0.15600937,63625.0,63622.0,0.12914726]
[1721333071666,0.15600937,63625.0,63615.0,0.157193]
[1721333071667,0.1403,63624.0,63615.0,0.157193]
[1721333071884,0.1403,63624.0,63616.0,0.1289888]
[1721333071885,0.07717479,63621.0,63616.0,0.1289888]
[1721333072104,0.15438174,63620.0,63617.0,0.1289888]
[1721333072317,0.15438174,63620.0,63613.0,0.1572]
[1721333072534,0.15438174,63620.0,63614.0,0.12926467]
[1721333072746,0.15438174,63620.0,63615.0,0.1]
[1721333072956,0.15438174,63620.0,63615.0,0.157193]
[1721333073166,0.15438174,63620.0,63616.0,0.001]
[1721333073615,0.15438174,63620.0,63616.0,0.157193]
[1721333073826,0.15438174,63620.0,63617.0,0.15719]
[1721333074035,0.16238174,63620.0,63617.0,0.15719]
[1721333074248,0.16238174,63620.0,63619.0,0.157185]
[1721333074458,0.16238174,63620.0,63619.0,0.257185]
[1721333074681,0.16238174,63620.0,63619.0,0.1]
[1721333074938,0.17038174,63620.0,63619.0,0.1]
[1721333075159,0.16238174,63620.0,63619.0,0.1]
[1721333075370,0.16238174,63620.0,63619.0,0.257185]
[1721333075371,0.16138174,63620.0,63619.0,0.257185]
[1721333075582,0.17038174,63620.0,63619.0,0.1]
[1721333075796,0.17038174,63620.0,63617.0,0.1]
[1721333076008,0.17738174,63620.0,63619.0,0.158185]
[1721333076220,0.16838174,63620.0,63619.0,0.101]
[1721333076460,0.16838174,63620.0,63619.0,0.102]
[1721333076680,0.17538174,63620.0,63619.0,0.102]
[1721333077550,0.16138174,63620.0,63619.0,0.101]
[1721333078041,0.16838174,63620.0,63619.0,0.101]
[1721333078472,0.17538174,63620.0,63619.0,0.102]
[1721333078687,0.17538174,63620.0,63619.0,0.159185]
[1721333078916,0.17538174,63620.0,63619.0,0.259185]
[1721333080046,0.17538174,63620.0,63619.0,0.887927]
[1721333080047,0.021,63620.0,63619.0,0.887927]
[1721333080261,0.021,63620.0,63619.0,1.202298]
[1721333080472,0.021,63620.0,63619.0,2.702298]
[1721333081373,0.007,63620.0,63619.0,2.701298]
[1721333081627,0.0825,63630.0,63629.0,0.157161]
[1721333081841,0.23688174,63630.0,63629.0,0.157161]
[1721333082261,0.15438174,63630.0,63629.0,0.157161]
[1721333083911,0.15438174,63630.0,63628.0,0.157163]
[1721333084117,0.15438174,63629.0,63628.0,0.157163]
[1721333084768,0.15438174,63629.0,63627.0,0.157165]
[1721333084978,0.07717479,63628.0,63627.0,0.157165]
[1721333085183,0.23155653,63628.0,63627.0,0.157165]
[1721333086293,0.23155653,63628.0,63627.0,0.471496]
[1721333086515,0.23155653,63628.0,63627.0,0.786827]
[1721333086713,0.23755653,63628.0,63627.0,0.472496]
[1721333088387,0.23755653,63628.0,63627.0,0.786827]
[1721333088602,0.24355653,63628.0,63627.0,0.573496]
[1721333088823,0.012,63628.0,63627.0,0.887827]
[1721333093898,0.012,63628.0,63627.0,1.202158]
[1721333094604,0.012,63628.0,63627.0,1.407076]
[1721333095094,0.012,63628.0,63627.0,2.151638]
[1721333095343,0.012,63628.0,63627.0,3.031638]
[1721333095567,0.04938866,63642.0,63641.0,1.099917]
[1721333095789,0.1468,63651.0,63649.0,0.471334]
[1721333096018,0.23155653,63650.0,63649.0,0.471334]
[1721333097668,0.24555653,63650.0,63649.0,0.472334]
[1721333097899,0.24555653,63650.0,63649.0,1.20078]
[1721333098123,0.24555653,63650.0,63649.0,1.20178]
[1721333098354,0.24855653,63650.0,63649.0,1.20178]
[1721333100172,0.24855653,63650.0,63649.0,0.887557]
[1721333101568,0.39385653,63650.0,63649.0,0.102]
[1721333101793,0.39385653,63650.0,63649.0,0.002]
[1721333102041,0.31175653,63650.0,63649.0,0.573334]
[1721333102290,0.17138174,63650.0,63649.0,1.20178]
[1721333102522,0.17138174,63650.0,63649.0,0.887557]
[1721333104656,0.17138174,63650.0,63649.0,1.20178]
[1721333104882,0.17138174,63650.0,63649.0,0.887557]
[1721333105108,0.017,63650.0,63649.0,1.20178]
[1721333105336,0.017,63650.0,63649.0,1.33015029]
[1721333106640,0.003,63650.0,63649.0,1.32915029]
[1721333107075,0.003,63650.0,63649.0,1.33015029]
[1721333107076,0.014,63650.0,63649.0,1.33015029]
[1721333107289,0.00083,63654.0,63653.0,0.785507]
[1721333107501,0.00083,63654.0,63653.0,0.885507]
[1721333107922,0.00083,63654.0,63653.0,1.19971]
[1721333109274,0.00383,63654.0,63653.0,1.20071]
[1721333109746,0.00383,63654.0,63653.0,1.32951101]
[1721333110193,0.01483,63654.0,63653.0,1.33051101]
[1721333110401,0.01483,63654.0,63653.0,1.20171]
[1721333110620,0.01483,63654.0,63653.0,1.3304988]
[1721333111311,0.01483,63654.0,63653.0,1.20171]
[1721333111536,0.01483,63654.0,63653.0,1.33049378]
[1721333111744,0.01483,63654.0,63653.0,1.33050068]
[1721333112214,0.01483,63654.0,63653.0,1.78520368]
[1721333112506,0.01483,63654.0,63653.0,2.09940668]
[1721333112738,0.00872833,63654.0,63653.0,3.59940668]
[1721333113193,1e-08,63654.0,63653.0,3.59940668]
[1721333113672,0.00835,63662.0,63661.0,1.099574]
[1721333113910,0.00835,63662.0,63661.0,1.32836468]
[1721333114136,0.00835,63662.0,63661.0,1.64252868]
[1721333114357,0.00835,63662.0,63661.0,2.09719268]
[1721333114797,0.00835,63662.0,63661.0,1.968402]
[1721333115025,0.01935,63662.0,63661.0,2.09878607]
[1721333115235,0.02235,63662.0,63661.0,2.09978607]
[1721333115449,0.01135,63662.0,63661.0,2.09878607]
[1721333115671,0.01435,63662.0,63661.0,2.09878607]
[1721333115896,0.01435,63662.0,63661.0,3.59878607]
[1721333116977,0.01135,63662.0,63661.0,3.59778607]
[1721333117931,0.01135,63662.0,63661.0,3.59815233]
[1721333118360,0.01135,63662.0,63661.0,3.59814637]
[1721333119040,0.01135,63662.0,63661.0,3.59814912]
[1721333121138,0.01135,63662.0,63661.0,3.59818541]
[1721333121398,0.01135,63662.0,63661.0,3.28402141]
[1721333123731,0.01135,63662.0,63661.0,2.82935741]
[1721333123968,0.01135,63662.0,63661.0,1.05880412]
[1721333124232,0.16573174,63662.0,63661.0,0.571246]
[1721333124660,0.16573174,63662.0,63661.0,0.70156721]
[1721333125142,0.01135,63662.0,63661.0,1.01573121]
[1721333125340,0.01135,63662.0,63661.0,1.32989521]
[1721333127073,0.01135,63662.0,63661.0,1.199574]
[1721333127285,0.01135,63662.0,63661.0,1.32978591]
[1721333127771,0.01135,63662.0,63661.0,1.32978244]
[1721333127987,0.01135,63662.0,63661.0,1.64394644]
[1721333128881,0.01135,63662.0,63661.0,3.14394644]
[1721333129760,0.01135,63662.0,63661.0,3.99394644]
[1721333130410,0.01135,63662.0,63661.0,3.99382616]
[1721333130661,0.01135,63662.0,63661.0,3.14382616]
[1721333133505,0.01135,63662.0,63661.0,3.1439687]
[1721333135996,0.01135,63662.0,63661.0,3.8839687]
[1721333136214,0.00835,63668.0,63667.0,1.413603]
[1721333136444,0.00835,63668.0,63667.0,1.6438337]
[1721333136729,0.00835,63668.0,63667.0,1.64361273]
[1721333137232,0.00835,63668.0,63667.0,1.64398482]
[1721333137684,0.00835,63668.0,63667.0,1.64498482]
[1721333137912,0.00835,63668.0,63667.0,1.64598482]
[1721333138412,0.00835,63668.0,63667.0,1.33185082]
[1721333138867,0.30633174,63668.0,63667.0,1.01771682]
[1721333139338,0.31108239,63668.0,63667.0,1.01771682]
[1721333139801,0.31108239,63668.0,63667.0,1.01773279]
[1721333140534,0.31108239,63668.0,63667.0,0.13239779]
[1721333140789,0.31108239,63668.0,63667.0,0.002]
[1721333143131,0.31108239,63668.0,63664.0,0.1]
[1721333143349,0.07717479,63665.0,63664.0,0.1]
[1721333143797,0.29669851,63665.0,63664.0,0.23005562]
[1721333144700,0.24669851,63665.0,63664.0,0.23005562]
[1721333144977,0.21952372,63665.0,63664.0,0.38712962]
[1721333145206,0.21952372,63665.0,63664.0,0.70227862]
[1721333145440,0.21952372,63665.0,63664.0,0.38812962]
[1721333145681,0.21952372,63665.0,63664.0,0.70227862]
[1721333145907,0.21952372,63665.0,63664.0,0.38812962]
[1721333146135,0.21952372,63665.0,63664.0,0.38801041]
[1721333146355,0.22652372,63665.0,63664.0,0.23093641]
[1721333146582,0.31402372,63665.0,63664.0,0.102]
[1721333148497,0.31402372,63665.0,63664.0,0.002]
[1721333148719,0.31402372,63665.0,63664.0,0.102]
[1721333149675,0.31402372,63665.0,63664.0,0.002]
[1721333152303,0.31402372,63665.0,63664.0,0.159074]
[1721333152527,0.31402372,63665.0,63664.0,0.259074]
[1721333152777,0.31402372,63665.0,63664.0,0.887372]
[1721333152999,0.31402372,63665.0,63664.0,1.33162126]
[1721333153220,0.17212372,63665.0,63664.0,1.33162126]
[1721333153428,0.17212372,63665.0,63664.0,2.83162126]
[1721333153882,0.013,63665.0,63664.0,2.83162126]
[1721333154105,0.013,63665.0,63664.0,1.33162126]
[1721333155648,0.16738174,63665.0,63664.0,1.201521]
[1721333155885,0.16738174,63665.0,63664.0,1.33093715]
[1721333156101,0.16738174,63665.0,63664.0,1.01679302]
[1721333157709,0.16738174,63665.0,63664.0,0.23142102]
[1721333157925,0.30898174,63665.0,63664.0,0.23142102]
[1721333158353,0.31372822,63665.0,63664.0,0.23142102]
[1721333158845,0.31372822,63665.0,63664.0,0.23155497]
[1721333159277,0.31372822,63665.0,63664.0,0.102]
[1721333159493,0.31372822,63665.0,63664.0,0.002]
[1721333159753,0.31372822,63665.0,63664.0,0.102]
[1721333160434,0.31372822,63665.0,63664.0,0.002]
[1721333160669,0.3508301,63665.0,63664.0,0.002]
[1721333161112,0.31372822,63665.0,63664.0,0.002]
[1721333161336,0.34483565,63665.0,63664.0,0.001]
[1721333161561,0.0651,63664.0,63655.0,0.257096]
[1721333161770,0.1931168,63663.0,63655.0,0.257096]
[1721333161953,0.002794,63662.0,63655.0,0.257096]
[1721333162164,0.15600937,63661.0,63655.0,0.257096]
[1721333162380,0.07996879,63660.0,63655.0,0.1]
[1721333162651,0.30150937,63659.0,63654.0,0.100913]
[1721333162875,0.002794,63658.0,63654.0,0.000913]
[1721333163114,0.21778174,63655.0,63654.0,0.000913]
[1721333163334,0.38233085,63655.0,63654.0,0.000913]
[1721333163619,0.36634343,63655.0,63654.0,0.000913]
[1721333163857,0.62365819,63655.0,63654.0,0.000913]
[1721333164096,0.74364926,63655.0,63654.0,0.000913]
[1721333164323,0.82796454,63655.0,63654.0,0.000913]
[1721333164567,0.78093689,63655.0,63654.0,0.000913]
[1721333164794,0.79493689,63655.0,63654.0,0.001913]
[1721333165245,0.80893689,63655.0,63654.0,0.002913]
[1721333165471,0.82293689,63655.0,63654.0,0.002913]
[1721333166397,1.45132289,63655.0,63654.0,0.002913]
[1721333166613,0.1399,63641.0,63625.0,0.157169]
[1721333166846,0.1399,63641.0,63616.0,0.0642]
[1721333166847,0.15438174,63635.0,63616.0,0.0642]
[1721333167074,0.15438174,63635.0,63615.0,0.0783]
[1721333167075,0.1399,63629.0,63620.0,0.157183]
[1721333167312,0.30060329,63629.0,63620.0,0.157183]
[1721333168657,0.31460329,63629.0,63618.0,0.471559]
[1721333168941,0.32860329,63629.0,63619.0,0.1]
[1721333169139,0.32860329,63629.0,63620.0,0.157183]
[1721333169364,0.32860329,63629.0,63621.0,0.1]
[1721333170041,0.31460329,63629.0,63621.0,0.1]
[1721333170298,0.32760329,63629.0,63621.0,0.1]
[1721333170546,0.32760329,63629.0,63621.0,0.25718]
[1721333170767,0.31360329,63629.0,63621.0,0.25718]
[1721333171011,0.17207566,63629.0,63628.0,0.158076]
[1721333171278,0.18607566,63629.0,63628.0,0.472403]
[1721333171557,0.15907566,63629.0,63628.0,0.472403]
[1721333172027,0.17938174,63629.0,63628.0,0.472403]
[1721333172477,0.16638174,63629.0,63628.0,0.472403]
[1721333172717,0.17638174,63629.0,63628.0,0.472403]
[1721333173907,0.16438174,63629.0,63628.0,0.472403]
[1721333174193,0.16338174,63629.0,63628.0,0.472403]
[1721333174650,0.17838174,63629.0,63628.0,0.472403]
[1721333176244,0.18285096,63629.0,63628.0,0.472403]
[1721333176469,0.17838174,63629.0,63628.0,0.472403]
[1721333177184,0.17838174,63629.0,63628.0,0.78673]
[1721333177869,0.17838174,63629.0,63628.0,0.92553]
[1721333178110,0.17838174,63629.0,63628.0,1.339857]
[1721333179330,0.17838174,63629.0,63628.0,1.02553]
[1721333179809,0.17838174,63629.0,63628.0,1.339857]
[1721333183186,0.17838174,63629.0,63628.0,0.88673]
[1721333183623,0.17838174,63629.0,63628.0,1.201057]
[1721333184786,0.025,63629.0,63628.0,1.32644715]
[1721333185014,0.025,63629.0,63628.0,1.46614715]
[1721333185253,0.025,63629.0,63628.0,1.78047415]
[1721333185473,0.008,63629.0,63628.0,1.78047415]
[1721333185927,0.017,63629.0,63628.0,1.655084]
[1721333186165,0.017,63629.0,63628.0,1.78050108]
[1721333186424,0.017,63629.0,63628.0,1.46617408]
[1721333186722,0.017,63629.0,63628.0,2.96617408]
[1721333187228,0.009,63629.0,63628.0,2.96617408]
[1721333187448,0.009,63629.0,63628.0,0.38349308]
[1721333187449,0.01,63629.0,63628.0,0.38349308]
[1721333187661,0.011,63629.0,63628.0,0.69782008]
[1721333187881,0.001,63629.0,63628.0,0.69782008]
[1721333188093,0.001,63629.0,63628.0,1.32647408]
[1721333188349,0.002,63629.0,63628.0,1.32847408]
[1721333188793,0.001,63629.0,63628.0,1.32647408]
[1721333189023,0.001,63629.0,63628.0,1.32847408]
[1721333189257,0.00162763,63635.0,63634.0,0.471445]
[1721333189480,0.15438174,63635.0,63634.0,0.885742]
[1721333189744,0.15438174,63635.0,63634.0,1.01121017]
[1721333190181,0.15438174,63635.0,63634.0,0.885742]
[1721333190397,0.15438174,63635.0,63634.0,0.571445]
[1721333190652,0.15438174,63635.0,63634.0,0.257148]
[1721333190864,0.15738174,63635.0,63634.0,0.257148]
[1721333191292,0.15438174,63635.0,63634.0,0.257148]
[1721333191709,0.15538174,63635.0,63634.0,0.257148]
[1721333192410,0.15538174,63635.0,63634.0,0.38263048]
[1721333192646,0.15538174,63635.0,63634.0,0.38259847]
[1721333193143,0.15538174,63635.0,63634.0,0.38263197]
[1721333194081,0.15538174,63635.0,63634.0,0.69692897]
[1721333195248,0.15538174,63635.0,63634.0,0.38263197]
[1721333195476,0.15538174,63635.0,63634.0,0.22548397]
[1721333195698,0.30367158,63635.0,63634.0,0.22548397]
[1721333196175,0.30367158,63635.0,63634.0,0.1]
[1721333196395,0.30367158,63635.0,63631.0,0.257155]
[1721333196613,0.15600937,63634.0,63632.0,0.28235961]
[1721333196858,0.15600937,63634.0,63633.0,0.22520661]
[1721333197128,0.15438174,63634.0,63633.0,0.22520661]
[1721333197627,0.15438174,63634.0,63633.0,0.38235761]
[1721333198577,0.15438174,63634.0,63633.0,0.257151]
[1721333198801,0.15438174,63634.0,63633.0,0.38216335]
[1721333199548,0.15600937,63634.0,63633.0,0.22501235]
[1721333199785,0.04909876,63641.0,63640.0,1.099934]
[1721333200272,0.2034805,63641.0,63640.0,0.22501235]
[1721333200276,0.15438174,63641.0,63640.0,0.12501235]
[1721333200515,0.15438174,63641.0,63636.0,0.00273045]
[1721333200516,0.25734203,63641.0,63636.0,0.00273045]
[1721333200741,0.33451682,63640.0,63636.0,0.00273045]
[1721333200982,0.10296029,63639.0,63636.0,0.00273045]
[1721333201224,0.1920101,63638.0,63637.0,0.13047562]
[1721333201489,0.15438174,63638.0,63636.0,0.00273045]
[1721333201720,0.15438174,63638.0,63637.0,0.13047489]
[1721333201944,0.15438174,63638.0,63637.0,0.13047578]
[1721333202194,0.19208028,63638.0,63637.0,0.13047578]
[1721333202457,0.15438174,63638.0,63637.0,0.13047578]
[1721333202727,0.19207011,63638.0,63637.0,0.13047578]
[1721333203407,0.19807011,63638.0,63637.0,0.13047578]
[1721333203642,0.20307011,63638.0,63637.0,0.13047578]
[1721333203873,0.20711315,63638.0,63637.0,0.13047578]
[1721333204096,0.20211315,63638.0,63637.0,0.13047578]
[1721333204573,0.20711315,63638.0,63637.0,0.13047578]
[1721333204801,0.16942478,63638.0,63637.0,1.33046223]
[1721333205277,0.16538174,63638.0,63637.0,1.33046223]
[1721333205734,0.16538174,63638.0,63637.0,1.01618023]
[1721333207858,0.16538174,63638.0,63637.0,0.885705]
[1721333208047,0.16538174,63638.0,63637.0,1.0161656]
[1721333209627,0.16538174,63638.0,63637.0,1.01616565]
[1721333211179,0.16538174,63638.0,63637.0,1.0161674]
[1721333211402,0.30328174,63638.0,63637.0,1.0161674]
[1721333211842,0.30732365,63638.0,63637.0,1.0161674]
[1721333214018,0.22972365,63638.0,63637.0,1.0161674]
[1721333214442,0.16942365,63638.0,63637.0,0.885705]
[1721333214657,0.16942365,63638.0,63637.0,1.01616686]
[1721333214878,0.16942365,63638.0,63637.0,0.885705]
[1721333215096,0.16942365,63638.0,63637.0,1.01616711]
[1721333215573,0.16538174,63638.0,63637.0,1.01616711]
[1721333216435,0.16538174,63638.0,63637.0,0.23046211]
[1721333216647,0.16538174,63638.0,63637.0,0.38760311]
[1721333216888,0.16942755,63638.0,63637.0,0.38760311]
[1721333217579,0.16942755,63638.0,63637.0,0.3876098]
[1721333218253,0.16942755,63638.0,63637.0,0.7018918]
[1721333218912,0.16942755,63638.0,63637.0,0.3876098]
[1721333219343,0.16001979,63638.0,63637.0,0.3876098]
[1721333219598,0.33764713,63638.0,63637.0,0.2304688]
[1721333219820,0.33764713,63638.0,63631.0,0.314311]
[1721333220059,0.33764713,63638.0,63629.0,0.000913]
[1721333220060,0.07717479,63632.0,63629.0,0.000913]
[1721333220302,0.07717479,63632.0,63630.0,0.13048114]
[1721333220303,0.15438174,63631.0,63630.0,0.13048114]
[1721333220528,0.1584164,63631.0,63630.0,0.1]
[1721333220778,0.1584164,63631.0,63629.0,0.158073]
[1721333220779,0.14,63630.0,63629.0,0.000913]
[1721333221000,0.46351771,63630.0,63629.0,0.000913]
[1721333221239,0.14,63622.0,63613.0,0.1572]
[1721333221498,0.07717479,63619.0,63614.0,0.13051085]
[1721333221720,0.0628,63617.0,63609.0,0.15721]
[1721333221944,0.15438174,63616.0,63610.0,0.13051768]
[1721333222179,0.15838879,63616.0,63611.0,0.314409]
[1721333222648,0.07717479,63612.0,63610.0,0.157206]
[1721333222875,0.15438174,63611.0,63610.0,0.157206]
[1721333223131,0.15839617,63611.0,63610.0,0.60214176]
[1721333223367,0.15839617,63611.0,63610.0,0.571621]
[1721333223839,0.15839617,63611.0,63610.0,0.1]
[1721333224549,0.15939617,63611.0,63609.0,0.1]
[1721333225499,0.16339617,63611.0,63609.0,0.1]
[1721333225742,0.15839617,63611.0,63609.0,0.1]
[1721333226195,0.16439617,63611.0,63609.0,0.1]
[1721333226695,0.15839617,63611.0,63609.0,0.25721]
[1721333226921,0.16239617,63611.0,63609.0,0.25721]
[1721333227138,0.0631,63609.0,63600.0,0.009174]
[1721333227404,0.07717479,63605.0,63600.0,0.166404]
[1721333227621,0.15438174,63604.0,63600.0,0.166404]
[1721333227842,0.1583909,63604.0,63600.0,0.166404]
[1721333228490,0.1583909,63604.0,63601.0,0.1]
[1721333228915,0.1593909,63604.0,63601.0,0.1]
[1721333230282,0.1583909,63604.0,63601.0,0.1]
[1721333230506,0.1593909,63604.0,63601.0,0.1]
[1721333230939,0.1593909,63604.0,63600.0,0.109174]
[1721333231394,0.1593909,63604.0,63600.0,0.009174]
[1721333231395,0.20438174,63602.0,63600.0,0.009174]
[1721333231620,0.29868174,63601.0,63600.0,0.009174]
[1721333231849,0.32566721,63601.0,63600.0,0.009174]
[1721333232065,0.37566721,63601.0,63600.0,0.009174]
[1721333232286,0.32566721,63601.0,63600.0,0.009174]
[1721333232768,0.37566721,63601.0,63600.0,0.009174]
[1721333232990,0.4134227,63601.0,63600.0,0.009174]
[1721333233216,0.38966721,63601.0,63600.0,0.009174]
[1721333234180,0.55516721,63601.0,63600.0,0.009174]
[1721333234648,0.56916721,63601.0,63600.0,0.009174]
[1721333235117,0.35366721,63601.0,63600.0,0.009174]
[1721333235365,0.37566721,63601.0,63600.0,0.009174]
[1721333235813,0.33966721,63601.0,63600.0,0.009174]
[1721333236259,0.38966721,63601.0,63600.0,0.009174]
[1721333236480,0.37566721,63601.0,63600.0,0.009174]
[1721333236910,0.38966721,63601.0,63600.0,0.009174]
[1721333237346,0.40366721,63601.0,63600.0,0.009174]
[1721333237559,0.38966721,63601.0,63600.0,0.009174]
[1721333237777,0.40366721,63601.0,63600.0,0.009174]
[1721333239120,0.38966721,63601.0,63600.0,0.009174]
[1721333239340,0.37566721,63601.0,63600.0,0.009174]
[1721333239789,0.38966721,63601.0,63600.0,0.009174]
[1721333240273,0.37566721,63601.0,63600.0,0.009174]
[1721333240485,0.40366721,63601.0,63600.0,0.009174]
[1721333241140,0.38966721,63601.0,63600.0,0.009174]
[1721333241601,0.40366721,63601.0,63600.0,0.009174]
[1721333241828,0.65373311,63601.0,63600.0,0.009174]
[1721333242061,1.47759211,63601.0,63600.0,0.009174]
[1721333242279,1.70748621,63601.0,63600.0,0.009174]
[1721333242489,1.72359475,63601.0,63600.0,0.009174]
[1721333243122,1.73759475,63601.0,63600.0,0.009174]
[1721333243347,0.63698475,63601.0,63600.0,0.009174]
[1721333243566,0.73610621,63601.0,63600.0,0.009174]
[1721333243782,1.06456621,63601.0,63600.0,0.009174]
[1721333244002,0.76410621,63601.0,63600.0,0.009174]
[1721333244435,1.07856621,63601.0,63600.0,0.009174]
[1721333244671,0.7640707,63601.0,63600.0,0.009174]
[1721333244888,0.6160147,63601.0,63600.0,0.009174]
[1721333245334,0.7732447,63601.0,63600.0,0.009174]
[1721333245975,0.80956715,63601.0,63600.0,0.009174]
[1721333246402,0.80973538,63601.0,63600.0,0.009174]
[1721333247557,0.77206189,63601.0,63600.0,0.009174]
[1721333247780,0.80983163,63601.0,63600.0,0.009174]
[1721333248020,0.77206189,63601.0,63600.0,0.009174]
[1721333248238,0.8098429,63601.0,63600.0,0.009174]
[1721333250873,0.80981063,63601.0,63600.0,0.009174]
[1721333251994,1.43873063,63601.0,63600.0,0.009174]
[1721333252432,1.5930802,63601.0,63600.0,0.009174]
[1721333252874,1.80779778,63601.0,63600.0,0.009174]
[1721333253321,0.05,63592.0,63590.0,0.009174]
[1721333253543,1.33565195,63592.0,63590.0,0.009174]
[1721333253762,1.65385821,63592.0,63590.0,0.009174]
[1721333253985,1.139272,63591.0,63590.0,0.009174]
[1721333254207,1.39363567,63591.0,63590.0,0.009174]
[1721333254431,1.39453976,63591.0,63590.0,0.009174]
[1721333256246,1.40853976,63591.0,63590.0,0.009174]
[1721333256702,1.42253976,63591.0,63590.0,0.009174]
[1721333257213,1.42265031,63591.0,63590.0,0.009174]
[1721333257475,1.47731692,63591.0,63590.0,0.009174]
[1721333257728,1.4773169,63591.0,63590.0,0.009174]
[1721333258196,1.1628079,63591.0,63590.0,0.009174]
[1721333258658,1.63166647,63591.0,63590.0,0.009174]
[1721333260029,1.75492263,63591.0,63590.0,0.009174]
[1721333260473,1.83890506,63591.0,63590.0,0.009174]
[1721333263396,1.88771112,63591.0,63590.0,0.009174]
[1721333263614,1.88766635,63591.0,63590.0,0.009174]
[1721333264265,1.41880778,63591.0,63590.0,0.009174]
[1721333264722,1.73331678,63591.0,63590.0,0.009174]
[1721333266034,1.41880778,63591.0,63590.0,0.009174]
[1721333266247,0.89704478,63591.0,63590.0,0.009174]
[1721333266463,0.94704478,63591.0,63590.0,0.009174]
[1721333266687,1.10560433,63591.0,63590.0,0.009174]
[1721333267197,1.1056702,63591.0,63590.0,0.009174]
[1721333268571,0.9484162,63591.0,63590.0,0.009174]
[1721333269510,1.1056702,63591.0,63590.0,0.009174]
[1721333269726,0.85593353,63591.0,63590.0,0.009174]
[1721333269945,0.94878361,63591.0,63590.0,0.009174]
[1721333270653,1.19928852,63591.0,63590.0,0.009174]
[1721333271060,1.42054661,63591.0,63590.0,0.009174]
[1721333271581,1.10603761,63591.0,63590.0,0.009174]
[1721333272066,1.42054661,63591.0,63590.0,0.009174]
[1721333273318,1.41990227,63591.0,63590.0,0.009174]
[1721333274494,1.73441127,63591.0,63590.0,0.009174]
[1721333275884,1.88876084,63591.0,63590.0,0.009174]
[1721333276354,1.88789257,63591.0,63590.0,0.009174]
[1721333277269,1.93496212,63591.0,63590.0,0.009174]
[1721333277502,1.88789257,63591.0,63590.0,0.009174]
[1721333278258,1.9584969,63591.0,63590.0,0.009174]
[1721333278534,1.88210508,63591.0,63590.0,0.009174]
[1721333279015,1.88210508,63591.0,63577.0,0.009163]
[1721333279016,0.05,63579.0,63577.0,0.009163]
[1721333279256,1.27940279,63578.0,63577.0,0.009163]
[1721333279503,1.22409302,63578.0,63577.0,0.009163]
[1721333279741,1.40106225,63578.0,63577.0,0.009163]
[1721333279968,1.30690118,63578.0,63577.0,0.009163]
[1721333280205,1.3775258,63578.0,63577.0,0.009163]
[1721333280443,1.6920998,63578.0,63577.0,0.009163]
[1721333280964,0.74922076,63578.0,63577.0,0.009163]
[1721333281186,0.71613939,63578.0,63577.0,0.009163]
[1721333281880,0.77924968,63578.0,63577.0,0.009163]
[1721333282106,0.62529033,63578.0,63577.0,0.009163]
[1721333282343,0.65056268,63578.0,63577.0,0.009163]
[1721333282567,1.319691,63578.0,63577.0,0.009163]
[1721333282799,1.53291562,63578.0,63577.0,0.009163]
[1721333283043,1.87102607,63578.0,63577.0,0.009163]
[1721333283261,1.87102136,63578.0,63577.0,0.009163]
[1721333283502,1.84574901,63578.0,63577.0,0.009163]
[1721333283729,2.33821756,63578.0,63577.0,0.009163]
[1721333283961,1.85529399,63578.0,63577.0,0.009163]
[1721333284177,1.73759265,63578.0,63577.0,0.009163]
[1721333284398,1.85528073,63578.0,63577.0,0.009163]
[1721333284620,1.60002843,63578.0,63577.0,0.009163]
[1721333284877,1.8657617,63578.0,63577.0,0.009163]
[1721333285083,2.08555136,63578.0,63577.0,0.009163]
[1721333285304,2.33468357,63578.0,63577.0,0.009163]
[1721333285521,2.21699361,63578.0,63577.0,0.009163]
[1721333285761,2.2167667,63578.0,63577.0,0.009163]
[1721333286884,1.9021927,63578.0,63577.0,0.009163]
[1721333287831,1.90132183,63578.0,63577.0,0.009163]
[1721333288048,1.74697226,63578.0,63577.0,0.009163]
[1721333288264,2.06154626,63578.0,63577.0,0.009163]
[1721333288458,1.74697226,63578.0,63577.0,0.009163]
[1721333289329,1.86462854,63578.0,63577.0,0.009163]